[Event "FIDE WY-U16 Olympiad 2022"]
[Site "Nakhchivan"]
[Date "2022.10.02"]
[Round "1.23"]
[White "Amilal Munkhdalai"]
[Black "Rzayev, Murad"]
[Result "1-0"]
[ECO "B40"]
[WhiteElo "2137"]
[BlackElo "1699"]
[Annotator "TA"]
[PlyCount "75"]
[EventDate "2022.10.02"]
[EventType "team-tourn"]
[EventCountry "AZE"]
[SourceTitle "playchess.com"]
[Source "ChessBase"]
[SourceQuality "1"]
[WhiteTeam "Mongolia"]
[BlackTeam "Azerbaijan"]
[WhiteTeamCountry "MGL"]
[BlackTeamCountry "AZE"]
[TimeControl "40/5400+30:1800+30"]

{[%evp 10,75,14,21,55,45,56,29,32,27,28,29,33,29,34,23,25,18,57,62,98,97,97,53,110,114,120,121,130,70,199,203,200,175,195,184,355,170,345,352,342,315,385,393,358,366,356,339,1097,1096,1123,1129,1081,1096,1050,902,889,610,1212,1170,5410,5506,12838,12839,12841,12841,12841,12840]} 1. e4 {[%emt 0:00:02]} c5 {[%emt 0:00:04]} 2. Nf3 {[%emt 0:00:03]} e6 {[%emt 0:00:06]} 3. b3 {[%emt 0:00:17]} Nc6 {[%emt 0:00:35]} 4. Bb2 {[%emt 0:00:27]} d6 {[%emt 0:00:41]} 5. d4 {[%emt 0:00:30]} cxd4 {[%emt 0:02:31]} 6. Nxd4 {[%emt 0:00:04]} Nxd4 {[%emt 0:01:04] B50: Sicilian: 2...d6, Miscellaneous.} 7. Qxd4 {[%emt 0:00:22]} Nf6 {[%emt 0:00:32]} 8. Bb5+ {[%emt 0:03:59]} Bd7 {[%emt 0:01:11] White has an edge.} 9. Bxd7+ {[%emt 0:00:47]} Qxd7 {[%emt 0:00:07]} 10. Nc3 {[%emt 0:08:36]} Be7 {[%emt 0:06:47]} 11. O-O-O {[%emt 0:00:17]} Qc6 {[%emt 0:08:52] [#]} 12. f4 $146 {[%emt 0:02:14]} ({Predecessor:} 12. f3 a6 13. Kb1 b5 14. g4 Qc5 15. Qxc5 dxc5 16. Ne2 h6 17. Be5 Rd8 18. Rxd8+ Kxd8 19. Rd1+ Kc8 20. Nf4 Rd8 21. Rxd8+ Kxd8 22. Nd3 Kc8 23. h4 Kb7 {½-½ (23) Oelke,B (1858)-Wendt,U Mecklenburg VP 2005}) 12... Rc8 {[%emt 0:04:39][%cal Od6d5]} 13. Kb1 {[%emt 0:01:24]} Nd7 {[%emt 0:15:21]} 14. Rhe1 {[%emt 0:04:50]} (14. Qxg7 $2 Bf6 15. Qg3 Bxc3 $19) 14... Bf6 {[%emt 0:31:30]} 15. e5 {[%emt 0:00:07][%cal Be4e5,Be5d6][%mdl 32]} Be7 {[%emt 0:00:11]} 16. Ne4 {[%emt 0:14:52]} (16. exd6 $6 Bf6 17. Qc4 Qxc4 18. bxc4 Rxc4 $11) 16... d5 {[%emt 0:00:26] [#]} ({Black should try} 16... dxe5 $1 $14 17. fxe5 O-O) 17. Nd6+ $1 $16 {[%emt 0:00:34]} (17. Nc3 $6 a6 $11) 17... Bxd6 {[%emt 0:01:17]} 18. exd6 {[%emt 0:00:03]} Nf6 {[%emt 0:01:03]} (18... Qxc2+ $2 19. Ka1 Qg6 20. Qxd5 $18 (20. Qxg7 Qxg7 21. Bxg7 Rg8 $11) (20. Qxa7 O-O $16)) 19. Rd3 {[%emt 0:13:22] Active counter play!} ({Don't do} 19. Qxa7 $6 Qxc2+ 20. Ka1 O-O 21. Qxb7 Rcd8 $14) (19. c4 $16) 19... Qc5 {[%emt 0:04:01] This move loses the game for Black.} (19... Qxc2+ $14 20. Ka1 Qc5) 20. Qxc5 $18 {[%emt 0:04:27]} Rxc5 {[%emt 0:00:08]} 21. Rg3 $36 {[%emt 0:05:51][%mdl 2048] Keeping Black busy.} Ne4 {[%emt 0:07:35]} 22. Rxg7 {[%emt 0:00:13][%cal Od6d7]} Nxd6 {[%emt 0:01:01]} (22... Rc6 23. d7+ Ke7) 23. Rg5 {[%emt 0:00:21]} (23. f5 $142) 23... Rf8 $2 {[%emt 0:00:27]} (23... h6) 24. Ba3 {[%emt 0:00:12]} Rc6 {[%emt 0:00:11]} 25. Rxd5 $1 {[%emt 0:00:15]} Kd7 {[%emt 0:00:16]} 26. Rd3 {[%emt 0:01:02] [#] Red1 is the strong threat.} Kc7 {[%emt 0:00:42]} 27. Red1 {[%emt 0:00:23]} Rd8 {[%emt 0:00:08]} 28. Kc1 {[%emt 0:02:02]} f5 $2 {[%emt 0:01:30]} (28... Rd7 29. Bb2 b5) 29. Bxd6+ {[%emt 0:01:22] White is clearly winning.} Rcxd6 {[%emt 0:00:11]} 30. Rxd6 {[%emt 0:00:24]} Rxd6 {[%emt 0:00:04]} 31. Rxd6 {[%emt 0:00:03]} Kxd6 {[%emt 0:00:06][%mdl 4096] Endgame KP-KP} 32. Kd2 {[%emt 0:00:03]} Kc5 {[%emt 0:00:14]} 33. c3 {[%emt 0:00:25][%cal Bc2c3,Bc3c4][%mdl 32]} b5 {[%emt 0:01:48]} 34. Kd3 {[%emt 0:00:05]} a5 {[%emt 0:00:49]} 35. a3 {[%emt 0:00:11]} h5 {[%emt 0:05:05]} 36. h4 {[%emt 0:00:15]} b4 {[%emt 0:03:28]} 37. axb4+ {[%emt 0:00:09]} axb4 {[%emt 0:00:05]} 38. c4 {[%emt 0:00:02] Weighted Error Value: White=0.18 (very precise) /Black=0.44} 1-0

[Event "FIDE WY-U16 Olympiad 2022"]
[Site "Nakhchivan"]
[Date "2022.10.02"]
[Round "1.23"]
[White "Abdulkarimli, Eljan"]
[Black "Nurgaliyev, Sauat"]
[Result "0-1"]
[ECO "B23"]
[WhiteElo "1742"]
[BlackElo "2133"]
[Annotator "TA"]
[PlyCount "78"]
[EventDate "2022.10.02"]
[EventType "team-tourn"]
[EventCountry "AZE"]
[SourceTitle "playchess.com"]
[Source "ChessBase"]
[SourceQuality "1"]
[WhiteTeam "Azerbaijan"]
[BlackTeam "Kazakhstan"]
[WhiteTeamCountry "AZE"]
[BlackTeamCountry "KAZ"]
[TimeControl "40/5400+30:1800+30"]

{[%evp 16,78,-16,-14,-20,-34,-9,-18,-7,-11,0,0,12,-39,-17,-45,-19,-30,-35,-85,-27,-62,0,-32,0,0,19,-138,-41,-121,-97,-112,-95,-87,-86,-156,-155,-260,-255,-319,-301,-373,-383,-371,-377,-343,-353,-534,-535,-530,-539,-540,-489,-507,-512,-638,-575,-942,-933,-902,-804,-4818,-4666,-1806,-1078]} 1. e4 {[%emt 0:00:07]} c5 {[%emt 0:00:04]} 2. Nc3 {[%emt 0:00:08]} d6 {[%emt 0:00:05]} 3. f4 {[%emt 0:00:08]} g6 {[%emt 0:00:13]} 4. Nf3 {[%emt 0:00:09]} Bg7 {[%emt 0:00:05]} 5. Bc4 {[%emt 0:00:17]} Nc6 {[%emt 0:00:10]} 6. d3 {[%emt 0:00:32]} e6 {[%emt 0:00:12]} 7. O-O {[%emt 0:00:34]} Nge7 {[%emt 0:00:11]} 8. Qe1 {[%emt 0:00:39]} O-O {[%emt 0:00:52]} 9. Qh4 {[%emt 0:06:08]} d5 {[%emt 0:03:25] B23: Closed Sicilian: Lines without g3.} 10. Bb3 {[%emt 0:00:39][%cal Of4f5]} (10. exd5 exd5 11. Bb3 h5 $15) 10... Nd4 {[%emt 0:03:38]} (10... Na5 {keeps more tension.} 11. f5 gxf5 12. Bh6 Nxb3 13. axb3 f6) 11. Nxd4 {[%emt 0:05:59] 11.f5 is more fashionable.} ({But not} 11. Ng5 h6 12. Nf3 b6 $15) 11... cxd4 {[%emt 0:00:34] The position is equal.} 12. Ne2 {[%emt 0:00:53][%cal Of4f5]} dxe4 {[%emt 0:00:45]} 13. dxe4 {[%emt 0:00:06][%cal Of4f5]} Nc6 {[%emt 0:01:56]} 14. Qh3 {[%emt 0:28:44] [#]} (14. Qf2 $11) 14... b6 $146 {[%emt 0:01:18]} ({Predecessor:} 14... Na5 15. e5 Nxb3 16. axb3 Qb6 17. Kh1 Bd7 18. Rd1 Rfd8 19. Nxd4 Bc6 20. Be3 Be4 {1-0 (31) Prieto Aranguren,A (2256)-Risteski,E (2363) Chess.com INT 2022}) 15. Rd1 {[%emt 0:08:03]} Ba6 $36 {[%emt 0:01:05][%mdl 2048] Black is pushing.} 16. Ng3 {[%emt 0:03:37]} Qe7 {[%emt 0:08:08]} 17. f5 {[%emt 0:06:37]} (17. e5 $15) 17... Rfe8 {[%emt 0:02:49]} (17... Ne5 $17) 18. Bh6 $11 {[%emt 0:05:14]} Bf6 {[%emt 0:07:29]} (18... Ne5 $1 $15) 19. Re1 {[%emt 0:16:31]} d3 {[%emt 0:06:56] aiming for ...exf5.} 20. c3 {[%emt 0:01:03]} Rad8 {[%emt 0:03:13]} 21. Rad1 $2 {[%emt 0:03:30]} (21. fxe6 $11 fxe6 22. Nf1) 21... Ne5 {[%emt 0:01:43] White is on the road to losing.} (21... exf5 $17 {Hoping for ...Bc8.} 22. Bd2 f4 23. Bxf4 Bc8) 22. Bd2 {[%emt 0:03:08] [#]} (22. fxe6 $15 fxe6 23. Nf1) 22... Bc4 $1 $17 {[%emt 0:03:11]} 23. Rf1 {[%emt 0:00:52]} Bxb3 {[%emt 0:00:48] Black is more active.} 24. axb3 {[%emt 0:00:03]} Bg5 {[%emt 0:03:01] Strongly threatening ...Bxd2.} 25. f6 {[%emt 0:05:54]} ({White should play} 25. fxe6 fxe6 26. Nh1) 25... Bxf6 {[%emt 0:01:19]} 26. Rxf6 {[%emt 0:00:17]} (26. Nh1 $17) 26... Qxf6 $19 {[%emt 0:00:09]} 27. Rf1 {[%emt 0:00:11]} Qe7 {[%emt 0:00:50]} 28. Qh6 {[%emt 0:01:18]} Ng4 {[%emt 0:04:11]} 29. Qf4 {[%emt 0:01:04]} f5 {[%emt 0:00:24][%cal Bf7f5,Bf5e4][%mdl 32]} 30. h3 {[%emt 0:01:22][%cal Re4f5]} Nf6 {[%emt 0:00:42]} 31. Qh6 {[%emt 0:00:55]} (31. e5 {keeps fighting.} Nd5 32. Qf2) 31... Nxe4 {[%emt 0:02:55] Black is clearly winning.} 32. Nxe4 {[%emt 0:00:38]} fxe4 {[%emt 0:00:06]} 33. Bg5 {[%emt 0:00:39]} Qg7 {[%emt 0:00:42]} 34. Qh4 {[%emt 0:00:17]} Rd5 {[%emt 0:01:15]} 35. Bh6 {[%emt 0:00:27]} Rh5 {[%emt 0:02:52]} 36. Qxh5 {[%emt 0:01:11]} gxh5 {[%emt 0:00:05]} 37. Bxg7 {[%emt 0:00:06]} Kxg7 {[%emt 0:00:01]} 38. Rd1 {[%emt 0:00:17]} Rf8 {[%emt 0:00:17]} 39. Kh2 {[%emt 0:00:15]} Rd8 {[%emt 0:00:20] Weighted Error Value: White=0.78/Black=0.21 (precise)} 0-1

[Event "FIDE WY-U16 Olympiad 2022"]
[Site "Nakhchivan"]
[Date "2022.10.02"]
[Round "1.24"]
[White "Sabitov, Ilyas"]
[Black "Nasibova, Narmin"]
[Result "1-0"]
[ECO "B12"]
[WhiteElo "1924"]
[BlackElo "1504"]
[Annotator "TA"]
[PlyCount "151"]
[EventDate "2022.10.02"]
[EventType "team-tourn"]
[EventCountry "AZE"]
[SourceTitle "playchess.com"]
[Source "ChessBase"]
[SourceQuality "1"]
[WhiteTeam "Kazakhstan"]
[BlackTeam "Azerbaijan"]
[WhiteTeamCountry "KAZ"]
[BlackTeamCountry "AZE"]
[TimeControl "40/5400+30:1800+30"]

{[%evp 12,151,53,15,54,-33,-24,-42,-50,-42,-31,-33,-37,-89,-45,-58,-52,-49,-33,-37,-26,-21,-12,-17,-24,-54,-58,-61,-66,-58,161,167,375,0,-5,0,915,895,1736,1700,1503,-169,-144,-229,-261,-268,250,245,242,266,264,-32,0,0,0,0,0,0,0,0,0,0,243,224,230,219,235,218,268,222,736,313,343,333,337,326,494,481,470,412,417,297,377,338,351,338,326,306,609,502,473,208,207,205,409,396,389,376,733,733,726,706,673,655,753,710,29971,29972,29972,29973,29973,29973,29974,29974,29974,29976,29976,29977,29977,29978,29977,29977,29977,29978,29980,29977,29977,29978,29976,29979,29978,0,8,8,29979,29980,29980,29981,29981,29982,29982,29983]} 1. e4 {[%emt 0:00:05]} c6 {[%emt 0:00:21]} 2. d4 {[%emt 0:00:30]} d5 {[%emt 0:00:10]} 3. e5 {[%emt 0:00:43]} Bf5 {[%emt 0:01:15]} 4. Nf3 {[%emt 0:00:53]} e6 {[%emt 0:00:35]} 5. Be2 {[%emt 0:00:51]} Nd7 {[%emt 0:02:20]} 6. O-O {[%emt 0:01:29]} c5 {[%emt 0:03:49]} 7. Be3 {[%emt 0:01:09]} Rc8 {[%emt 0:02:31][%cal Of5c2] B12: Caro-Kann: Advance Variation.} 8. Nc3 {[%emt 0:21:10]} ({Better is} 8. c3 $14) 8... a6 $15 {[%emt 0:04:36]} 9. dxc5 {[%emt 0:05:39]} Bxc5 {[%emt 0:03:02] Black is slightly better.} 10. Nd4 {[%emt 0:00:49]} Bg6 {[%emt 0:06:10]} 11. f4 {[%emt 0:01:45]} Ne7 {[%emt 0:13:14]} 12. g4 {[%emt 0:08:38]} (12. Bd3 $15) 12... O-O {[%emt 0:14:00] [#]} 13. Qd2 $146 {[%emt 0:05:06]} ({Predecessor:} 13. Bd3 Bxd3 14. Qxd3 Nc6 15. Nxc6 Rxc6 16. Rf3 Bxe3+ 17. Qxe3 Qb6 18. Rd1 Qxe3+ 19. Rxe3 {0-1 (45) Hintikka,E (2112)-Aaltio,E (2170) Helsinki 2010}) 13... b5 {[%emt 0:12:25]} 14. a3 {[%emt 0:08:18]} Qc7 {[%emt 0:10:07]} 15. Rf2 {[%emt 0:09:17]} h6 {[%emt 0:08:16]} 16. Raf1 {[%emt 0:05:17]} Bh7 {[%emt 0:03:04]} 17. Bd3 {[%emt 0:13:43]} Bxd3 {[%emt 0:10:11]} 18. Qxd3 {[%emt 0:00:04]} Bb6 {[%emt 0:01:59]} 19. Qd1 {[%emt 0:06:47]} Nc5 {[%emt 0:00:57]} 20. Qf3 {[%emt 0:06:57]} g6 $2 {[%emt 0:00:48]} (20... Nc6 $15 21. Rd1 Nd7) 21. Qh3 $18 {[%emt 0:00:37]} Ne4 $2 {[%emt 0:00:34]} (21... f5 {was necessary.} 22. Qxh6 Rf7) 22. Rf3 $2 {[%emt 0:00:55]} (22. Nxe4 $18 {Threatens to win with Nf6+.} dxe4 23. Qxh6 Bxd4 24. Bxd4) 22... Bxd4 $11 {[%emt 0:00:29]} (22... Nxc3 $2 23. Qxh6 Ne2+ 24. Nxe2 $18) 23. Bxd4 {[%emt 0:00:09]} Nd2 $2 {[%emt 0:00:23][%mdl 8192]} (23... h5 $11) 24. Qxh6 $18 {[%emt 0:00:21]} Nxf3+ {[%emt 0:00:24]} 25. Rxf3 {[%emt 0:00:07] Rh3 would kill now.} f5 {[%emt 0:00:21]} 26. Rh3 $4 {[%emt 0:00:45][%mdl 8192]} (26. exf6 $18 {was the only winning move.} Rxf6 27. Bxf6) 26... Kf7 $19 {[%emt 0:00:10] Inhibits Qg7+. White must now prevent ...Rh8.} 27. gxf5 {[%emt 0:00:55]} (27. Qg5 $17 Ke8 28. Bf2) 27... Nxf5 {[%emt 0:01:09]} 28. Qg5 {[%emt 0:00:40] Hoping for Qf6+.} Nxd4 $4 {[%emt 0:00:34][%mdl 8192]} (28... Kg7 $19 {and all is fine.} 29. Bf2 Qd8) 29. Rh7+ $18 {[%emt 0:00:18][%mdl 64] Skewer} Ke8 {[%emt 0:00:27]} 30. Rxc7 {[%emt 0:00:50]} Rxc7 {[%emt 0:00:25]} 31. Kg2 {[%emt 0:00:23] Against Nf3} ({White must play} 31. Qxg6+ $18 Rff7 32. Nxd5 $1 Rxc2 33. f5 $1) 31... Rcf7 {[%emt 0:00:41]} (31... Kd7 $5 {[%cal Rd4f5]}) 32. Qxg6 {[%emt 0:00:33][%cal Oc3d5] And now Nxd5! would win.} Kd7 {[%emt 0:00:19]} 33. Nxd5 {[%emt 0:00:41]} exd5 {[%emt 0:00:22]} 34. Qd6+ {[%emt 0:00:08]} Ke8 {[%emt 0:00:43]} 35. Qb8+ {[%emt 0:00:22]} Ke7 {[%emt 0:00:11]} 36. Qa7+ {[%emt 0:00:36]} Ke6 $2 {[%emt 0:00:54]} (36... Ke8 $11 37. Qxd4 Rxf4 38. Qxd5 Rg4+ 39. Kh3 Rg6 40. Qa8+ Ke7 41. Qa7+ (41. Qb7+ Ke8 $11) 41... Ke8 42. Qb8+ (42. Qa8+ Ke7 $11) 42... Ke7 43. Qc7+ Ke8) 37. Qb6+ {[%emt 0:00:12]} (37. Qxd4 Rxf4 38. Qe3 Rg8+ 39. Kh3 Rf5 40. Qh6+ Kxe5 $11) 37... Ke7 {[%emt 0:00:28]} 38. Qxd4 {[%emt 0:00:41] Dancing on a razor blade.} Rxf4 {[%emt 0:00:08][%mdl 4096] Endgame [#] KQ-KRR} 39. Qc5+ $1 {[%emt 0:00:41]} (39. Qxd5 Rg4+ 40. Kh3 Rg6 41. Qb7+ Ke8 $11) 39... Ke8 {[%emt 0:00:55]} 40. Qc6+ {[%emt 0:00:39]} (40. Qxd5 Rg4+ 41. Kh3 Rg6 42. Qa8+ Ke7 43. Qa7+ (43. Qb7+ Ke8 $11) 43... Ke8 $11) 40... Ke7 $2 {[%emt 0:00:20]} (40... Kf7 41. Kg3 (41. Qxa6 Rg8+ 42. Kh3 Rf3+ 43. Kh4 Rf4+ 44. Kh5 Rf5+ 45. Kh4 Rf4+ 46. Kh3 Rf3+ 47. Kh4 Rf4+ $11) 41... Kg7 42. Qxd5 (42. Qxa6 Rf3+ 43. Kg2 Rf2+ 44. Kh3 R2f3+ 45. Kh4 R3f4+ 46. Kg3 Rf3+ 47. Kg2 Rf2+ 48. Kh3 R2f3+ 49. Kh4 R3f4+ 50. Kh3 Rf3+ $11) 42... R4f7) 41. Qd6+ {[%emt 0:30:29]} (41. Qc7+ $142 Ke6 42. Qd6+ Kf7 43. e6+ Kg7 44. e7) 41... Ke8 {[%emt 0:30:08]} 42. Qe6+ {[%emt 0:00:33]} (42. Qxa6 Rg8+ 43. Kh3 Rf3+ 44. Kh4 Rf4+ 45. Kh3 Rf3+ 46. Kh4 Rf4+ 47. Kh5 Rf5+ 48. Kh6 Kf7 49. e6+ (49. Qb7+ Ke6 $11) 49... Kf6 50. e7+ Kxe7 $11) (42. Qxd5 Rg4+ 43. Kh3 Rg6 44. Qa8+ Kf7 45. e6+ Rxe6 $16) 42... Kd8 {[%emt 0:00:04]} 43. Qxd5+ {[%emt 0:00:04]} Kc7 {[%emt 0:01:28]} (43... Ke8 $142 44. Qe6+ Kd8 45. Qd6+ Ke8 46. Qe6+ Kd8 47. Qb6+ Ke8 48. Qe6+) 44. e6 {[%emt 0:00:47]} Rg4+ {[%emt 0:00:31]} 45. Kh3 {[%emt 0:00:07]} Rgg8 {[%emt 0:00:11]} 46. e7 {[%emt 0:01:00]} Rh8+ {[%emt 0:00:28]} 47. Kg4 {[%emt 0:00:08]} Rfg8+ {[%emt 0:00:47]} 48. Kf4 {[%emt 0:00:22]} Rh4+ {[%emt 0:00:27]} 49. Ke3 {[%emt 0:00:31]} Rhh8 {[%emt 0:00:36]} (49... Re8 50. Qc5+ Kd7 51. Qa7+ Ke6 52. Qxa6+ Kxe7 53. Qxb5 Rxh2) 50. h4 {[%emt 0:00:55]} Re8 {[%emt 0:00:30]} 51. Qe5+ {[%emt 0:00:05]} (51. Qe4 $142) 51... Kd7 {[%emt 0:00:14]} 52. Kd3 {[%emt 0:00:06] Strongly threatening Qe4.} Rxh4 {[%emt 0:00:43]} (52... Rh6 {was worth a try.} 53. Qf5+ Re6) 53. Qd5+ {[%emt 0:00:16]} Kc7 {[%emt 0:00:28]} 54. Qc5+ {[%emt 0:00:37]} Kb7 $2 {[%emt 0:00:32]} (54... Kd7 55. Qa7+ Kd6 56. Qxa6+ Kxe7 57. Qxb5 Rh3+ 58. Kc4 Re3) 55. Qd6 {[%emt 0:00:49] Threatening mate with Qd7+.} Rh3+ {[%emt 0:00:31]} 56. Ke4 {[%emt 0:00:37] White threatens Qd7+ and mate.} Rhh8 {[%emt 0:00:31]} 57. Qd7+ {[%emt 0:00:21]} Kb8 {[%emt 0:00:31]} 58. Kf5 {[%emt 0:00:48]} Rh5+ {[%emt 0:00:30]} 59. Kg6 {[%emt 0:00:12]} Rhh8 {[%emt 0:00:10]} 60. Kf7 {[%emt 0:01:18]} Rc8 {[%emt 0:00:08]} 61. e8=Q {[%emt 0:00:40]} Rhxe8 {[%emt 0:00:31]} 62. Qxe8 {[%emt 0:00:06]} Rxe8 {[%emt 0:00:03]} 63. Kxe8 {[%emt 0:00:06] K3P-KPP} Kc7 {[%emt 0:00:18]} 64. Ke7 {[%emt 0:00:18]} Kc6 {[%emt 0:00:12]} 65. Ke6 {[%emt 0:01:25]} Kc5 {[%emt 0:00:30]} 66. Ke5 {[%emt 0:00:00]} a5 {[%emt 0:00:00]} 67. b3 {[%emt 0:00:00]} a4 {[%emt 0:00:52]} 68. Ke4 {[%emt 0:00:00]} axb3 {[%emt 0:01:05]} 69. cxb3 {[%emt 0:00:00] KPP-KP} Kd6 {[%emt 0:01:35]} 70. Kd4 {[%emt 0:00:00]} Kc6 {[%emt 0:00:24] [#]} 71. Ke4 $2 {[%emt 0:00:00]} (71. Ke5 $1 {mates} Kc5 72. b4+ Kc6 73. Ke6 Kb7 74. Kd5 Kb6 75. Kd6 Ka7 76. Kc5) 71... Kd6 $11 {[%emt 0:00:28]} 72. Kd3 {[%emt 0:00:00] White wants to mate with Ke4.} Ke6 $2 {[%emt 0:00:43][%mdl 8192]} (72... Kc6 $11) 73. Kd4 {[%emt 0:00:00] White mates.} Kd6 {[%emt 0:00:33]} 74. b4 {[%emt 0:00:00]} Kc6 {[%emt 0:00:14]} 75. Ke5 {[%emt 0:00:00]} Kc7 {[%emt 0:00:31]} 76. Kd5 {[%emt 0:00:00] Weighted Error Value: White=0.55/Black=0.68} 1-0